bitfinex-derivatives/quotes_BTCF0:USTF0_20250929
["timestamp","ask_amount","ask_price","bid_price","bid_amount"]
[1759156516254,1.2061232,113840.0,113830.0,0.17219637]
[1759156516561,1.2061232,113840.0,113830.0,0.109986]
[1759156516763,1.2091232,113840.0,113830.0,0.114986]
[1759156517057,0.02516,113840.0,113830.0,0.888976]
[1759156517259,0.37505132,113840.0,113830.0,0.888976]
[1759156517457,0.37845132,113840.0,113830.0,0.889976]
[1759156517652,0.37845132,113840.0,113830.0,0.489976]
[1759156517853,0.39193132,113840.0,113830.0,0.17866899]
[1759156518750,0.46099747,113840.0,113830.0,0.17866899]
[1759156519662,0.82179747,113840.0,113830.0,0.17866899]
[1759156520058,0.82179747,113840.0,113830.0,0.115986]
[1759156520254,0.82179747,113840.0,113830.0,0.093796]
[1759156520467,0.90959217,113840.0,113830.0,0.093796]
[1759156520763,0.90959217,113840.0,113830.0,0.0938024]
[1759156520963,1.30959217,113840.0,113830.0,0.0938024]
[1759156521368,1.65948349,113840.0,113830.0,0.006]
[1759156521559,1.30959217,113840.0,113830.0,0.006]
[1759156521763,0.0878024,113830.0,113820.0,0.15048759]
[1759156522070,2.00020504,113830.0,113820.0,0.15048759]
[1759156522261,1.65031372,113830.0,113820.0,0.15048759]
[1759156522764,0.83355372,113830.0,113820.0,0.15048759]
[1759156523160,1.65031372,113830.0,113820.0,0.0878046]
[1759156523362,2.00020504,113830.0,113820.0,0.0878046]
[1759156523562,1.65031372,113830.0,113820.0,0.0878046]
[1759156523769,1.65431372,113830.0,113820.0,0.0878046]
[1759156524467,0.83755372,113830.0,113820.0,0.0878046]
[1759156524661,1.3154224,113830.0,113820.0,0.0898046]
[1759156524862,0.76375132,113830.0,113820.0,0.1114846]
[1759156525060,1.66831372,113830.0,113820.0,0.1114846]
[1759156525466,2.01820504,113830.0,113820.0,0.002]
[1759156525665,2.41820504,113830.0,113820.0,0.002]
[1759156525860,2.41820504,113830.0,113820.0,0.0898101]
[1759156526066,2.41820504,113830.0,113820.0,0.002]
[1759156526263,1.7184224,113830.0,113820.0,0.0898108]
[1759156526561,2.41820504,113830.0,113820.0,0.002]
[1759156527568,0.1228706,113820.0,113810.0,0.0878135]
[1759156527769,1.18345324,113820.0,113810.0,0.0878135]
[1759156528467,0.1228788,113810.0,113800.0,0.17218289]
[1759156528667,1.65033012,113810.0,113800.0,0.15050949]
[1759156528867,1.64933012,113810.0,113800.0,0.06268299]
[1759156529068,2.04933012,113810.0,113800.0,0.06268299]
[1759156529373,0.1228865,113800.0,113790.0,0.15059405]
[1759156529670,0.83357782,113800.0,113790.0,0.15059405]
[1759156530071,0.74575132,113800.0,113790.0,0.15059405]
[1759156530369,0.83357782,113800.0,113790.0,0.15059405]
[1759156531158,1.18946914,113800.0,113790.0,0.15059405]
[1759156531370,1.58946914,113800.0,113790.0,0.08791106]
[1759156531571,1.15175132,113800.0,113790.0,0.08791106]
[1759156531772,1.15175132,113800.0,113790.0,0.10959106]
[1759156531969,1.15175132,113800.0,113790.0,0.17227405]
[1759156532172,1.61866,113800.0,113790.0,0.17227405]
[1759156532361,2.04900373,113800.0,113790.0,0.17227405]
[1759156532560,1.30020373,113800.0,113790.0,0.52307405]
[1759156532761,1.30020373,113800.0,113790.0,0.16227405]
[1759156533580,1.30028409,113800.0,113790.0,0.16227405]
[1759156533872,1.30032409,113800.0,113790.0,0.16227405]
[1759156534568,1.30032409,113800.0,113790.0,0.14059405]
[1759156534873,1.66112409,113800.0,113790.0,0.09959106]
[1759156535570,0.84428409,113800.0,113790.0,0.09959106]
[1759156535774,1.66112409,113800.0,113790.0,0.16227405]
[1759156536168,0.84428409,113800.0,113790.0,0.16227405]
[1759156536368,1.66112409,113800.0,113790.0,0.16227405]
[1759156537569,1.66112409,113800.0,113790.0,0.14059405]
[1759156537770,1.74895059,113800.0,113790.0,0.14059405]
[1759156538379,1.66112409,113800.0,113790.0,0.16227405]
[1759156538965,1.66112409,113800.0,113790.0,0.09959106]
[1759156539165,0.84428409,113800.0,113790.0,0.07791106]
[1759156539468,0.84428409,113800.0,113790.0,0.14059405]
[1759156539469,1.66112409,113800.0,113790.0,0.14059405]
[1759156539670,1.66112409,113800.0,113790.0,0.07791106]
[1759156539871,0.03506,113790.0,113780.0,0.1095172]
[1759156540075,0.734923,113790.0,113780.0,0.1095172]
[1759156540475,0.03514036,113790.0,113780.0,0.1095172]
[1759156540676,0.734923,113790.0,113780.0,0.1095172]
[1759156540877,1.551763,113790.0,113780.0,0.4703172]
[1759156541087,0.734923,113790.0,113780.0,0.5328505]
[1759156541277,1.555763,113790.0,113780.0,0.4703172]
[1759156541477,1.6435972,113790.0,113780.0,0.15037949]
[1759156541777,2.0043972,113790.0,113780.0,0.15037949]
[1759156542168,2.0083972,113790.0,113780.0,0.17505949]
[1759156543277,2.0083972,113790.0,113780.0,0.15337949]
[1759156543780,2.0083972,113790.0,113780.0,0.0908372]
[1759156544177,2.0083972,113790.0,113780.0,0.15337949]
[1759156545085,2.02921226,113790.0,113780.0,0.0908372]
[1759156545280,2.0193972,113790.0,113780.0,0.0898372]
[1759156545480,2.0283972,113790.0,113780.0,0.0898372]
[1759156547577,0.762923,113790.0,113780.0,0.1115172]
[1759156547783,2.0283972,113790.0,113780.0,0.1115172]
[1759156547977,0.8511572,113790.0,113780.0,0.1115172]
[1759156548183,1.6679972,113790.0,113780.0,0.1115172]
[1759156548482,2.0287972,113790.0,113780.0,0.0898372]
[1759156549280,2.0287972,113790.0,113780.0,0.1123972]
[1759156549475,2.0287972,113790.0,113780.0,0.0898372]
[1759156549671,2.0287972,113790.0,113780.0,0.1123972]
[1759156551473,1.2119572,113790.0,113780.0,0.1123972]
[1759156551678,2.0287972,113790.0,113780.0,0.1123972]
[1759156552678,1.6679972,113790.0,113780.0,0.1123972]
[1759156552878,2.0287972,113790.0,113780.0,0.1123972]
[1759156555085,1.2119572,113790.0,113780.0,0.1123972]
[1759156555284,2.0287972,113790.0,113780.0,0.1123972]
[1759156555781,1.124123,113790.0,113780.0,0.1123972]
[1759156555986,2.0287972,113790.0,113780.0,0.1123972]
[1759156556287,1.2119572,113790.0,113780.0,0.1123972]
[1759156556485,1.940963,113790.0,113780.0,0.1123972]
[1759156557285,1.26193863,113790.0,113780.0,0.1123972]
[1759156557488,1.96172127,113790.0,113780.0,0.1123972]
[1759156557880,0.43418995,113790.0,113780.0,0.8863672]
[1759156558076,1.22987168,113790.0,113780.0,0.8863672]
[1759156558291,1.23027168,113790.0,113780.0,0.8863672]
[1759156559191,0.86758036,113790.0,113780.0,0.8863672]
[1759156559381,1.21747168,113790.0,113780.0,0.8863672]
[1759156559576,0.86718036,113790.0,113780.0,0.8863672]
[1759156559780,0.40027168,113790.0,113780.0,0.8863672]
[1759156559982,1.21747168,113790.0,113780.0,0.8863672]
[1759156560181,0.86758036,113790.0,113780.0,0.8863672]
[1759156560384,0.02848036,113790.0,113780.0,0.8863672]
[1759156560586,0.02848036,113790.0,113780.0,1.23625852]
[1759156561081,6e-08,113790.0,113780.0,1.23625852]
[1759156561477,0.0008,113800.0,113790.0,0.47345552]
[1759156561682,0.0008,113800.0,113790.0,0.83425552]
[1759156561881,0.0008,113800.0,113790.0,1.23425552]
[1759156562084,0.3925075,113820.0,113810.0,0.1235488]
[1759156562282,1.33092232,113820.0,113810.0,0.4843488]
[1759156562480,0.76412232,113820.0,113810.0,0.4843488]
[1759156562684,0.39198145,113820.0,113810.0,0.8843488]
[1759156562888,0.39198145,113820.0,113810.0,1.23452349]
[1759156563084,0.39238145,113820.0,113810.0,1.23452349]
[1759156563295,0.37093145,113820.0,113810.0,0.8843488]
[1759156563487,0.37093145,113820.0,113810.0,1.23452349]
[1759156563882,0.02115676,113820.0,113810.0,1.23452349]
[1759156564077,0.02115676,113820.0,113810.0,1.59532349]
[1759156564286,0.0050001,113820.0,113810.0,1.59832349]
[1759156564486,0.63461084,113840.0,113830.0,0.1235333]
[1759156564792,0.63541084,113840.0,113830.0,0.8451333]
[1759156565185,0.64419465,113840.0,113830.0,0.8451333]
[1759156565382,1.08216494,113840.0,113830.0,0.03573]
[1759156565583,1.12649279,113840.0,113830.0,0.02256]
[1759156565783,1.12649279,113840.0,113830.0,0.1103633]
[1759156565985,0.1215933,113830.0,113820.0,0.1103663]
[1759156566184,0.82194268,113830.0,113820.0,0.02256]
[1759156566487,0.03379,113830.0,113820.0,0.110371]
[1759156566688,0.82194268,113830.0,113820.0,0.110371]
[1759156567485,0.73413938,113830.0,113820.0,0.110371]
[1759156567685,1.09493938,113830.0,113820.0,0.110371]
[1759156567895,1.10093938,113830.0,113820.0,0.113371]
[1759156568184,1.18874268,113830.0,113820.0,0.113371]
[1759156568384,1.62033053,113830.0,113820.0,0.090811]
[1759156568691,1.62033053,113830.0,113820.0,0.087811]
[1759156568988,0.8933933,113830.0,113820.0,0.093811]
[1759156569185,1.59374268,113830.0,113820.0,0.093811]
[1759156569982,1.62533053,113830.0,113820.0,0.093811]
[1759156572391,1.59374268,113830.0,113820.0,0.093811]
[1759156572588,1.59374268,113830.0,113820.0,0.006]
[1759156572988,1.59374268,113830.0,113820.0,0.093811]
[1759156573189,1.59374268,113830.0,113820.0,0.006]
[1759156575183,1.94391737,113830.0,113820.0,0.006]
[1759156575790,0.123701,113820.0,113810.0,0.0878139]
[1759156575986,0.1237123,113810.0,113800.0,0.110381]
[1759156576289,0.82406168,113810.0,113800.0,0.110381]
[1759156576896,0.82406168,113810.0,113800.0,0.087821]
[1759156577291,0.82406168,113810.0,113790.0,0.4711866]
[1759156577292,0.1004465,113800.0,113790.0,0.4711866]
[1759156577490,1.63750588,113800.0,113790.0,0.1103866]
[1759156577796,0.82106588,113800.0,113790.0,0.1103866]
[1759156578097,1.63750588,113800.0,113790.0,0.1103866]
[1759156578488,1.63450588,113800.0,113790.0,0.1103866]
[1759156578688,1.62750588,113800.0,113790.0,0.1103866]
[1759156578889,0.81106588,113800.0,113790.0,0.1103866]
[1759156579084,1.69748849,113800.0,113790.0,0.1103866]
[1759156579500,1.69748849,113800.0,113780.0,0.110118]
[1759156579501,0.1232642,113790.0,113780.0,0.110118]
[1759156579692,1.17741358,113790.0,113780.0,0.110118]
[1759156579996,1.98785358,113790.0,113780.0,0.110118]
[1759156580890,1.98785358,113790.0,113780.0,0.087838]
[1759156581095,1.98785358,113790.0,113770.0,0.1101227]
[1759156581096,0.03543,113780.0,113770.0,0.1101227]
[1759156581296,0.73577938,113780.0,113770.0,0.1101227]
[1759156581694,1.55221938,113780.0,113770.0,0.4709227]
[1759156581896,0.73577938,113780.0,113770.0,0.4709227]
[1759156582297,0.73577938,113780.0,113770.0,0.4835827]
[1759156582493,0.0044,113780.0,113770.0,0.8835827]
[1759156582696,0.0044,113780.0,113770.0,1.23375739]
[1759156582886,0.0044,113780.0,113770.0,1.29629968]
[1759156583091,0.004,113780.0,113770.0,1.29629968]
[1759156583495,0.0244,113780.0,113770.0,1.29629968]
[1759156583690,0.024,113780.0,113770.0,2.11981968]
[1759156584095,0.0244,113780.0,113770.0,2.11981968]
[1759156584293,0.024,113780.0,113770.0,2.11981968]
[1759156584498,0.4547573,113800.0,113790.0,0.1227742]
[1759156584698,0.4555573,113800.0,113790.0,0.4835742]
[1759156585098,0.80573199,113800.0,113790.0,0.4709142]
[1759156585498,0.80493199,113800.0,113790.0,0.1101142]
[1759156585704,0.80533199,113800.0,113790.0,0.4709142]
[1759156585906,0.81417409,113800.0,113790.0,0.4709142]
[1759156586202,0.83017409,113800.0,113790.0,0.4709142]
[1759156586398,0.82017409,113800.0,113790.0,0.4779142]
[1759156587396,1.64289409,113800.0,113790.0,0.1171142]
[1759156588407,2.13072059,113800.0,113790.0,0.0948342]
[1759156588908,1.43037121,113800.0,113790.0,0.0948342]
[1759156589097,2.13072059,113800.0,113790.0,0.0948342]
[1759156589299,1.30800059,113800.0,113790.0,0.0948342]
[1759156589505,1.22017409,113800.0,113790.0,0.0948342]
[1759156589696,2.04289409,113800.0,113790.0,0.0948342]
[1759156590404,2.13072059,113800.0,113790.0,0.0948342]
[1759156590809,2.49152059,113800.0,113790.0,0.0948342]
[1759156591010,1.58097409,113800.0,113790.0,0.0948342]
[1759156591307,2.04289409,113800.0,113790.0,0.0948342]
[1759156591705,1.22017409,113800.0,113790.0,0.4556342]
[1759156592108,0.82017409,113800.0,113790.0,0.4779142]
[1759156592308,1.64217409,113800.0,113790.0,0.4779142]
[1759156592512,1.64339405,113800.0,113790.0,0.4779142]
[1759156593111,0.82139405,113800.0,113790.0,0.4779142]
[1759156593313,1.64339405,113800.0,113790.0,0.4779142]
[1759156594032,0.82139405,113800.0,113790.0,0.4779142]
[1759156594320,1.64311405,113800.0,113790.0,0.4779142]
[1759156594520,0.82139405,113800.0,113790.0,0.4779142]
[1759156594716,0.45859936,113800.0,113790.0,1.24074889]
[1759156594924,0.44975726,113800.0,113790.0,1.24074889]
[1759156595122,0.44935726,113800.0,113790.0,1.30335632]
[1759156595316,0.44975726,113800.0,113790.0,1.30335632]
[1759156595518,0.44975726,113800.0,113790.0,1.24074889]
[1759156595716,0.42737726,113800.0,113790.0,1.24074889]
[1759156596117,0.42777726,113800.0,113790.0,1.24074889]
[1759156599226,0.42777726,113800.0,113790.0,1.30335632]
[1759156599422,0.42777726,113800.0,113790.0,0.90335632]
[1759156600821,0.07760257,113800.0,113790.0,0.90335632]
[1759156601218,0.09958257,113800.0,113790.0,0.90335632]
[1759156602123,0.07760257,113800.0,113790.0,0.90335632]
[1759156602324,0.00761996,113800.0,113790.0,1.65353101]
[1759156602629,0.38560469,113820.0,113810.0,0.1227588]
[1759156602830,0.38640469,113820.0,113810.0,0.88072875]
[1759156603032,0.38640469,113820.0,113810.0,1.24152875]
[1759156603226,0.38640469,113820.0,113810.0,0.89135406]
[1759156603621,0.38640469,113820.0,113810.0,1.24152875]
[1759156603822,0.0078,113820.0,113810.0,1.64652875]
[1759156604029,0.007,113820.0,113810.0,1.64652875]
[1759156604421,0.0008,113830.0,113820.0,0.122751]
[1759156604621,0.45467084,113840.0,113830.0,0.0878033]
[1759156604826,0.47525433,113840.0,113830.0,0.4835433]
[1759156605026,0.47565433,113840.0,113830.0,0.4835433]
[1759156605227,0.82542902,113840.0,113830.0,0.4835433]
[1759156605426,0.45467084,113840.0,113830.0,0.4835433]
[1759156605627,0.45507084,113840.0,113830.0,0.83371799]
[1759156605927,0.45507084,113840.0,113830.0,0.4835433]
[1759156606126,0.44962084,113840.0,113830.0,0.4865433]
[1759156606527,0.44922084,113840.0,113830.0,1.3105433]
[1759156606728,0.44322084,113840.0,113830.0,1.3095433]
[1759156606927,0.44362084,113840.0,113830.0,1.3095433]
[1759156607132,0.44362084,113840.0,113830.0,0.4855433]
[1759156607332,0.80724553,113840.0,113830.0,1.3092633]
[1759156608436,0.80524553,113840.0,113830.0,1.3072633]
[1759156609229,0.80524553,113840.0,113830.0,0.4835433]
[1759156609429,0.80524553,113840.0,113830.0,1.3077433]
[1759156609634,0.80524553,113840.0,113830.0,1.3073433]
[1759156609828,0.09144615,113840.0,113830.0,1.3073433]
[1759156610031,0.09144615,113840.0,113830.0,1.65751799]
[1759156610337,0.44162084,113840.0,113830.0,1.3073433]
[1759156610523,0.09144615,113840.0,113830.0,1.3073433]
[1759156610728,0.44162084,113840.0,113830.0,1.65751799]
[1759156611027,0.44122084,113840.0,113830.0,1.65751799]
[1759156611529,0.44162084,113840.0,113830.0,1.65747799]
[1759156611832,0.79179553,113840.0,113830.0,0.4835433]
[1759156612138,0.10408615,113840.0,113830.0,0.4835433]
[1759156612336,0.80443553,113840.0,113830.0,1.3077833]
[1759156612635,0.80443553,113840.0,113830.0,1.3079433]
[1759156613729,0.80443553,113840.0,113830.0,1.35491204]
[1759156614628,0.80443553,113840.0,113830.0,0.4835433]
[1759156614827,0.09144615,113840.0,113830.0,1.3073433]
[1759156615028,0.44162084,113840.0,113830.0,1.3073433]
[1759156615230,0.06946615,113840.0,113830.0,1.70448673]
[1759156615425,0.35017469,113850.0,113840.0,0.0877944]
[1759156615629,0.37333469,113850.0,113840.0,0.83348909]
[1759156615929,0.37373469,113850.0,113840.0,0.83348909]
[1759156616129,0.03661,113860.0,113850.0,0.1225067]
[1759156616334,0.40330224,113860.0,113850.0,0.4833067]
[1759156616529,0.39388209,113860.0,113850.0,0.83348139]
[1759156616931,0.39428209,113860.0,113850.0,0.4833067]
[1759156617131,0.39428209,113860.0,113850.0,1.3078267]
[1759156617332,0.74445678,113860.0,113850.0,0.4833067]
[1759156617527,0.74445678,113860.0,113850.0,1.3074667]
[1759156618128,0.75318565,113860.0,113850.0,1.3074667]
[1759156618328,0.75318565,113860.0,113850.0,1.3072267]
[1759156618543,0.8361084,113860.0,113850.0,1.3072267]
[1759156618730,0.8471084,113860.0,113850.0,1.3102267]
[1759156618931,0.8681084,113860.0,113850.0,1.3152267]
[1759156619937,0.8681084,113860.0,113850.0,1.3151867]
[1759156620242,0.8681084,113860.0,113850.0,0.4913067]
[1759156620537,0.8681084,113860.0,113850.0,1.3146267]
[1759156621625,0.847561,113860.0,113850.0,1.3146267]
[1759156621830,0.12584275,113860.0,113850.0,1.3146267]
[1759156622036,0.47561744,113860.0,113850.0,1.3146267]
[1759156622440,0.47601744,113860.0,113850.0,1.3146267]
[1759156622630,0.45245744,113860.0,113850.0,1.66480139]
[1759156623130,0.45285744,113860.0,113850.0,1.66480139]
[1759156623338,0.45245744,113860.0,113850.0,1.66480139]
[1759156623539,0.45285744,113860.0,113850.0,1.66480139]
[1759156624134,0.10268275,113860.0,113850.0,2.06480139]
[1759156624339,0.10268275,113860.0,113850.0,2.06367963]
[1759156624639,0.10228275,113860.0,113850.0,2.06367963]
[1759156624839,0.10268275,113860.0,113850.0,1.24115963]
[1759156625143,0.10268275,113860.0,113850.0,2.06367963]
[1759156625340,0.10268275,113860.0,113850.0,1.7136667]
[1759156625642,0.10268275,113860.0,113850.0,1.7135067]
[1759156626136,0.07068275,113860.0,113850.0,1.7055067]
[1759156626342,0.09384275,113860.0,113850.0,0.8833067]
[1759156626644,0.07068275,113860.0,113850.0,1.7054667]
[1759156627541,0.07068275,113860.0,113850.0,0.8833067]
[1759156627742,0.07068275,113860.0,113850.0,1.7053867]
[1759156627945,0.45633568,113860.0,113850.0,1.3053867]
[1759156628135,0.45633568,113860.0,113850.0,1.2926967]
[1759156629440,0.45633568,113860.0,113850.0,0.4706167]
[1759156629637,0.45633568,113860.0,113850.0,1.2926167]
[1759156629836,0.47688169,113860.0,113850.0,0.4706167]
[1759156630032,0.47688169,113860.0,113850.0,1.2934567]
[1759156630339,0.0004,113860.0,113850.0,2.07647653]
[1759156630541,0.38565293,113880.0,113870.0,0.1224918]
[1759156630744,0.40620212,113880.0,113870.0,0.9453718]
[1759156630935,0.40660212,113880.0,113870.0,0.9453718]
[1759156631543,0.41537652,113880.0,113870.0,0.9453718]
[1759156631743,0.40660212,113880.0,113870.0,0.9453718]
[1759156631944,0.41060212,113880.0,113870.0,1.3081718]
[1759156632536,0.06034919,113880.0,113870.0,1.3081718]
[1759156632735,0.13018432,113880.0,113870.0,1.3081718]
[1759156632937,0.13058432,113880.0,113870.0,1.3081718]
[1759156633137,0.12618432,113880.0,113870.0,1.3061718]
[1759156633339,0.11354432,113880.0,113870.0,1.65602473]
[1759156633539,0.09078432,113880.0,113870.0,1.65602473]
[1759156634238,0.11328432,113880.0,113870.0,0.4832918]
[1759156634443,0.11328432,113880.0,113870.0,1.3057718]
[1759156634840,0.11368432,113880.0,113870.0,1.3057718]
[1759156635043,0.11372432,113880.0,113870.0,1.3057718]
[1759156636233,0.11372432,113880.0,113870.0,0.4832918]
[1759156636434,0.11372432,113880.0,113870.0,1.3054118]
[1759156638638,0.09082432,113880.0,113870.0,1.3054118]
[1759156639539,0.09082432,113880.0,113870.0,1.65526473]
[1759156643139,0.11216432,113880.0,113870.0,1.65418473]
[1759156643341,0.11216432,113880.0,113870.0,1.3038918]
[1759156643646,0.46201725,113880.0,113870.0,1.3040518]
[1759156644341,0.46201725,113880.0,113870.0,0.4832918]
[1759156644545,0.46201725,113880.0,113870.0,1.3038918]
[1759156645245,0.11216432,113880.0,113870.0,1.3038918]
[1759156647954,0.11216432,113880.0,113870.0,1.3032518]
[1759156648949,0.11216432,113880.0,113870.0,0.4832918]
[1759156649151,0.11216432,113880.0,113870.0,1.3033318]
[1759156649948,0.11216432,113880.0,113870.0,1.3032918]
[1759156650251,0.46201725,113880.0,113870.0,1.3030918]
[1759156650749,0.11216432,113880.0,113870.0,1.3030918]
[1759156651348,0.11216432,113880.0,113870.0,0.4832918]
[1759156651645,0.11216432,113880.0,113870.0,1.3030518]
[1759156652744,0.11216432,113880.0,113870.0,1.3026118]
[1759156653951,0.02098919,113880.0,113870.0,2.07272958]
[1759156654346,0.0008,113890.0,113880.0,0.109204]
[1759156654547,0.02134,113900.0,113890.0,0.1184538]
[1759156654751,0.09055217,113900.0,113890.0,1.2981738]
[1759156655251,0.44926963,113900.0,113890.0,0.4792538]
[1759156655450,0.46265963,113900.0,113890.0,1.2981338]
[1759156655751,0.4647951,113900.0,113890.0,1.3001338]
[1759156655958,0.11494217,113900.0,113890.0,1.3001338]
[1759156656159,0.12373843,113900.0,113890.0,1.3001338]
[1759156656543,0.47359136,113900.0,113890.0,0.4719938]
[1759156656749,0.47359136,113900.0,113890.0,1.2908338]
[1759156656944,0.47359136,113900.0,113890.0,0.4719938]
[1759156657148,0.47359136,113900.0,113890.0,1.2905538]
[1759156657353,0.46259136,113900.0,113890.0,1.2885538]
[1759156658354,0.46259136,113900.0,113890.0,0.4699938]
[1759156658556,0.46259136,113900.0,113890.0,1.2885538]
[1759156659059,0.49417921,113900.0,113890.0,1.2885538]
[1759156659450,0.46259136,113900.0,113890.0,1.2885538]
[1759156659847,0.02214,113910.0,113900.0,0.0940886]
[1759156660158,0.02134,113910.0,113900.0,0.4763286]
[1759156660347,0.02174,113910.0,113900.0,0.4763286]
[1759156660657,0.03513,113910.0,113900.0,0.4763286]
[1759156660957,0.06313,113910.0,113900.0,0.4813286]
[1759156661559,0.06313,113910.0,113900.0,0.4749886]
[1759156661758,0.41298293,113910.0,113900.0,0.4749886]
[1759156662256,0.07171509,113910.0,113900.0,0.4749886]
[1759156662757,0.04371509,113910.0,113900.0,0.4699886]
[1759156662958,0.05771509,113910.0,113900.0,0.4729886]
[1759156663158,0.40756802,113910.0,113900.0,0.4729886]
[1759156663359,0.40756802,113910.0,113900.0,1.2912686]
[1759156664054,0.10560587,113910.0,113900.0,1.2976086]
[1759156664360,0.08426587,113910.0,113900.0,1.2976086]
[1759156664561,0.08386587,113910.0,113900.0,1.64746153]
[1759156664762,0.0144,113910.0,113900.0,1.64746153]
[1759156665655,0.0004,113910.0,113900.0,2.04446153]
[1759156665854,0.0244,113910.0,113900.0,2.09643027]
[1759156666054,0.38458293,113940.0,113930.0,0.1091655]
[1759156666253,0.40477441,113940.0,113930.0,0.4699655]
[1759156666458,0.38458293,113940.0,113930.0,0.4699655]
[1759156666657,0.38498293,113940.0,113930.0,0.4699655]
[1759156666859,0.40517405,113940.0,113930.0,0.4699655]
[1759156667248,0.41417405,113940.0,113930.0,0.4719655]
[1759156668263,0.4836567,113940.0,113930.0,0.4719655]
[1759156668958,0.49230322,113940.0,113930.0,0.4719655]
[1759156669261,0.48330322,113940.0,113930.0,0.4739655]
[1759156671262,0.4631121,113940.0,113930.0,0.4739655]
[1759156671855,0.11325917,113940.0,113930.0,0.4739655]
[1759156672054,0.4631121,113940.0,113930.0,0.4739655]
[1759156673062,0.4627121,113940.0,113930.0,0.4739655]
[1759156673367,0.4631121,113940.0,113930.0,0.4739655]
[1759156673557,0.4631121,113940.0,113930.0,1.2909255]
[1759156674761,0.4631121,113940.0,113930.0,0.4739655]
[1759156674958,0.4631121,113940.0,113930.0,1.2908855]
[1759156677460,0.4631121,113940.0,113930.0,0.4739655]
[1759156677660,0.4631121,113940.0,113930.0,0.9300455]
[1759156678162,0.11325917,113940.0,113930.0,0.9300455]
[1759156678355,0.4631121,113940.0,113930.0,0.9300455]
[1759156678760,0.4631121,113940.0,113930.0,0.4739655]
[1759156678965,0.4631121,113940.0,113930.0,1.2908455]
[1759156679161,0.4631121,113940.0,113930.0,0.4739655]
[1759156679364,0.4631121,113940.0,113930.0,1.2908455]
[1759156680259,0.11325917,113940.0,113930.0,0.4739655]
[1759156680463,0.4631121,113940.0,113930.0,0.4739655]
[1759156681770,0.11325917,113940.0,113930.0,0.4739655]
[1759156682068,0.4631121,113940.0,113930.0,0.4739655]
[1759156682261,0.10103917,113940.0,113930.0,0.4739655]
[1759156682457,0.10625265,113940.0,113930.0,0.4739655]
[1759156683458,0.10625265,113940.0,113930.0,1.2944855]
[1759156683658,0.45610558,113940.0,113930.0,1.2944855]
[1759156683872,0.46483406,113940.0,113930.0,1.2945645]
[1759156684270,0.46443022,113940.0,113930.0,1.2945645]
[1759156684461,0.11498113,113940.0,113930.0,1.2945645]
[1759156684666,0.46443022,113940.0,113930.0,1.2945645]
[1759156686974,0.46443022,113940.0,113930.0,1.64401359]
[1759156687972,0.81387931,113940.0,113930.0,1.2938445]
[1759156688172,0.83409073,113940.0,113930.0,1.2938445]
[1759156688575,0.48464164,113940.0,113930.0,1.64329359]
[1759156689171,0.48464164,113940.0,113930.0,1.2938445]
[1759156689371,0.83409073,113940.0,113930.0,1.2938445]
[1759156690074,0.47591316,113940.0,113930.0,1.64329359]
[1759156690274,0.48472275,113940.0,113930.0,1.64329359]
[1759156690673,0.47591316,113940.0,113930.0,1.64329359]
[1759156690874,0.12646407,113940.0,113930.0,1.64329359]
[1759156691173,0.47591316,113940.0,113930.0,1.64329359]
[1759156691369,0.47591316,113940.0,113930.0,1.2938445]
[1759156691569,0.47591316,113940.0,113930.0,1.64329359]
[1759156692568,0.12646407,113940.0,113930.0,1.64329359]
[1759156692878,0.47591316,113940.0,113930.0,1.64329359]
[1759156693078,0.12646407,113940.0,113930.0,1.2938445]
[1759156693271,0.11260407,113940.0,113930.0,1.64963359]
[1759156693570,0.08969407,113940.0,113930.0,1.64963359]
[1759156693769,0.09009407,113940.0,113930.0,1.64963359]
[1759156695572,0.08969407,113940.0,113930.0,1.64963359]
[1759156695875,0.06988265,113940.0,113930.0,1.64963359]
[1759156696070,0.06948265,113940.0,113930.0,1.64963359]
[1759156696271,0.04474104,113950.0,113940.0,0.1091768]
[1759156696576,0.41444645,113950.0,113940.0,0.45862589]
[1759156696978,0.50215555,113950.0,113940.0,0.45862589]
[1759156697277,0.50215555,113950.0,113940.0,1.28018589]
[1759156697477,0.50315555,113950.0,113940.0,1.28018589]
[1759156697776,0.50315555,113950.0,113940.0,1.64098589]
[1759156697976,0.50315555,113950.0,113940.0,1.64074589]
[1759156698665,0.50215555,113950.0,113940.0,1.64074589]
[1759156698868,0.41544645,113950.0,113940.0,1.64074589]
[1759156699265,0.484951,113950.0,113940.0,1.2912968]
[1759156699476,0.484951,113950.0,113940.0,1.64074589]
[1759156701379,0.47618996,113950.0,113940.0,1.64074589]
[1759156701974,0.12674087,113950.0,113940.0,1.99019498]
[1759156702282,0.12674087,113950.0,113940.0,1.99653498]
[1759156702283,0.09156087,113950.0,113940.0,1.99653498]
[1759156702579,0.09076087,113950.0,113940.0,1.2976368]
[1759156702779,0.09116087,113950.0,113940.0,1.99653498]
[1759156703674,0.09116087,113950.0,113940.0,0.82576589]
[1759156703876,0.47602996,113950.0,113940.0,0.9291768]
[1759156704172,0.47602996,113950.0,113940.0,0.45862589]
[1759156704373,0.47602996,113950.0,113940.0,0.81942589]
[1759156704577,0.47602996,113950.0,113940.0,1.63930589]
[1759156705081,0.91318805,113950.0,113940.0,0.02146]
[1759156705278,0.91318805,113950.0,113930.0,1.31548924]
[1759156705279,0.01386,113940.0,113930.0,1.31548924]
[1759156705472,0.71275818,113940.0,113930.0,1.31548924]
[1759156705680,0.38356541,113940.0,113930.0,1.66493833]
[1759156705869,0.38356541,113940.0,113930.0,1.61796959]
[1759156706181,0.36970541,113940.0,113930.0,1.67127833]
[1759156706383,0.02025632,113940.0,113930.0,1.67127833]
[1759156706674,0.45437364,113950.0,113940.0,0.1101467]
[1759156706883,0.4754422,113950.0,113940.0,0.82039579]
[1759156707177,0.4746422,113950.0,113940.0,0.82039579]
[1759156707381,0.4750422,113950.0,113940.0,0.82039579]
[1759156707581,0.4746422,113950.0,113940.0,0.82039579]
[1759156707779,0.09017311,113950.0,113940.0,1.17618488]
[1759156708077,0.09077311,113950.0,113940.0,0.82673579]
[1759156708279,0.09017311,113950.0,113940.0,0.82673579]
[1759156708480,0.09117311,113950.0,113940.0,0.82673579]
[1759156709889,0.02166856,113950.0,113940.0,0.82673579]
[1759156710482,0.02126856,113950.0,113940.0,1.17618488]
[1759156710782,0.02166856,113950.0,113940.0,2.44263362]
[1759156711087,0.001,113950.0,113940.0,2.44263362]
[1759156711288,0.0014,113950.0,113940.0,2.44263362]
[1759156712385,0.0004,113950.0,113940.0,2.44263362]
[1759156712586,0.0004,113950.0,113940.0,2.44463362]
[1759156712987,0.0004,113950.0,113940.0,2.44263362]
[1759156713181,0.0004,113950.0,113940.0,0.92825544]
[1759156713382,0.0004,113950.0,113940.0,1.62715362]
[1759156713584,0.0004,113950.0,113940.0,2.44659362]
[1759156714182,0.0008,113960.0,113950.0,0.113429]
[1759156714484,0.09166969,113970.0,113960.0,0.1101313]
[1759156714783,0.4760247,113970.0,113960.0,0.82038039]
[1759156714979,0.4760247,113970.0,113960.0,1.63958039]
[1759156715180,0.4760247,113970.0,113960.0,1.2901313]